[Event "*** SCC Grand Prix: Titled Tuesday Blitz"]
[Site "Chess.com"]
[Date "2020.08.25"]
[Round "7"]
[White "beto-betun"]
[Black "BjarkeSahl"]
[Result "0-1"]
[WhiteElo "2106"]
[BlackElo "2315"]
[TimeControl "180+1"]
[EndTime "11:20:18 PDT"]
[Termination "BjarkeSahl won by resignation"]

1. d4 {[%clk 0:03:00.9]} 1... c5 {[%clk 0:02:58.1]} 2. d5 {[%clk 0:02:57]} 2...
e6 {[%clk 0:02:58.2]} 3. c4 {[%clk 0:02:55.6]} 3... a6 {[%clk 0:02:58.7]} 4. Nc3
{[%clk 0:02:52.1]} 4... exd5 {[%clk 0:02:59]} 5. Nxd5 {[%clk 0:02:46.6]} 5...
Nc6 {[%clk 0:02:49]} 6. g3 {[%clk 0:02:38.9]} 6... Nf6 {[%clk 0:02:44]} 7. Bg2
{[%clk 0:02:19.4]} 7... Nxd5 {[%clk 0:02:06.2]} 8. Bxd5 {[%clk 0:02:17.6]} 8...
Ne5 {[%clk 0:02:06.8]} 9. Nf3 {[%clk 0:02:12.6]} 9... Nxf3+ {[%clk 0:02:04.3]}
10. Bxf3 {[%clk 0:02:13.5]} 10... Be7 {[%clk 0:02:04.7]} 11. O-O {[%clk
0:02:13.4]} 11... O-O {[%clk 0:02:05.2]} 12. Bf4 {[%clk 0:02:03.5]} 12... d6
{[%clk 0:01:56.7]} 13. b3 {[%clk 0:02:00.2]} 13... Bf5 {[%clk 0:01:43.3]} 14.
Bxb7 {[%clk 0:01:53]} 14... Bh3 {[%clk 0:01:35.3]} 15. Bg2 {[%clk 0:01:50.1]}
15... Bxg2 {[%clk 0:01:35.6]} 16. Kxg2 {[%clk 0:01:50.8]} 16... a5 {[%clk
0:01:36.1]} 17. Qd5 {[%clk 0:01:45.7]} 17... a4 {[%clk 0:01:35.5]} 18. Rfd1
{[%clk 0:01:43.6]} 18... Qb6 {[%clk 0:01:24.7]} 19. Rd3 {[%clk 0:01:23.5]} 19...
Rfd8 {[%clk 0:01:05.2]} 20. Rad1 {[%clk 0:01:15.7]} 20... axb3 {[%clk
0:01:05.4]} 21. Rxb3 {[%clk 0:01:15.5]} 21... Qa6 {[%clk 0:01:00.6]} 22. Rb7
{[%clk 0:01:13.3]} 22... Re8 {[%clk 0:00:58.1]} 23. Bxd6 {[%clk 0:01:00.7]}
23... Rad8 {[%clk 0:00:49.4]} 24. Qf5 {[%clk 0:00:29.3]} 24... Rxd6 {[%clk
0:00:45.2]} 25. Rxe7 {[%clk 0:00:26.1]} 25... Qa8+ {[%clk 0:00:37.3]} 26. f3
{[%clk 0:00:17]} 26... Rxe7 {[%clk 0:00:30.9]} 27. Rxd6 {[%clk 0:00:16.9]} 27...
Rxe2+ {[%clk 0:00:29.3]} 28. Kh3 {[%clk 0:00:17.5]} 28... h6 {[%clk 0:00:23.1]}
29. Rd7 {[%clk 0:00:11.5]} 29... Qe8 {[%clk 0:00:21.7]} 30. Qd5 {[%clk
0:00:06.3]} 30... Kh7 {[%clk 0:00:20]} 31. Qxf7 {[%clk 0:00:02.6]} 31... Qxf7
{[%clk 0:00:18]} 32. Rxf7 {[%clk 0:00:03.5]} 32... Rxa2 {[%clk 0:00:18.3]} 33.
Rc7 {[%clk 0:00:01.9]} 33... Ra5 {[%clk 0:00:18.9]} 34. Kg4 {[%clk 0:00:02.1]}
34... Kg6 {[%clk 0:00:19.5]} 35. Kf4 {[%clk 0:00:02.5]} 35... Kh5 {[%clk
0:00:18.5]} 36. Ke4 {[%clk 0:00:02.8]} 36... g5 {[%clk 0:00:19]} 37. Kd5 {[%clk
0:00:03]} 37... Ra3 {[%clk 0:00:19.3]} 38. Rxc5 {[%clk 0:00:03.9]} 38... Rxf3
{[%clk 0:00:19.6]} 39. Rc6 {[%clk 0:00:03.9]} 39... Rf2 {[%clk 0:00:19.9]} 40.
Kc5 {[%clk 0:00:03.4]} 40... Rxh2 {[%clk 0:00:20.2]} 41. Kb6 {[%clk 0:00:04.3]}
41... Rb2+ {[%clk 0:00:20.6]} 42. Kc7 {[%clk 0:00:04.3]} 42... Rb3 {[%clk
0:00:20.6]} 43. c5 {[%clk 0:00:05.2]} 43... Rxg3 {[%clk 0:00:21.1]} 44. Rd6
{[%clk 0:00:04.5]} 44... Rc3 {[%clk 0:00:21.3]} 45. c6 {[%clk 0:00:04.9]} 45...
g4 {[%clk 0:00:21.7]} 46. Kd7 {[%clk 0:00:04.9]} 46... g3 {[%clk 0:00:21.4]} 47.
c7 {[%clk 0:00:05.7]} 47... g2 {[%clk 0:00:20.6]} 48. Rc6 {[%clk 0:00:05.9]}
48... Rxc6 {[%clk 0:00:20.3]} 49. Kxc6 {[%clk 0:00:05.7]} 49... g1=Q {[%clk
0:00:21.2]} 50. c8=Q {[%clk 0:00:06.3]} 50... Qc1+ {[%clk 0:00:22.1]} 51. Kb7
{[%clk 0:00:06.7]} 51... Qxc8+ {[%clk 0:00:21.3]} 52. Kxc8 {[%clk 0:00:07.6]}
52... Kg4 {[%clk 0:00:21.9]} 53. Kd7 {[%clk 0:00:08.5]} 53... h5 {[%clk
0:00:22.4]} 54. Ke6 {[%clk 0:00:09.4]} 54... h4 {[%clk 0:00:23.3]} 55. Ke5
{[%clk 0:00:10.3]} 55... h3 {[%clk 0:00:24.2]} 56. Ke4 {[%clk 0:00:11.2]} 56...
h2 {[%clk 0:00:25.1]} 57. Ke3 {[%clk 0:00:12.1]} 57... h1=Q {[%clk 0:00:26]} 58.
Ke2 {[%clk 0:00:13]} 58... Qf3+ {[%clk 0:00:26.1]} 0-1

[Event "*** SCC Grand Prix: Titled Tuesday Blitz"]
[Site "Chess.com"]
[Date "2020.08.25"]
[Round "7"]
[White "Borsuk_Konstantin"]
[Black "VMikhalevski"]
[Result "0-1"]
[WhiteElo "2543"]
[BlackElo "2725"]
[TimeControl "180+1"]
[EndTime "11:20:21 PDT"]
[Termination "VMikhalevski won on time"]

1. d4 {[%clk 0:03:00.9]} 1... Nf6 {[%clk 0:02:59.2]} 2. c4 {[%clk 0:03:01.1]}
2... g6 {[%clk 0:02:58.8]} 3. Nc3 {[%clk 0:03:00.8]} 3... d5 {[%clk 0:02:59.4]}
4. Nf3 {[%clk 0:02:59.7]} 4... Bg7 {[%clk 0:02:59.2]} 5. Bg5 {[%clk 0:03:00.4]}
5... Ne4 {[%clk 0:02:57.8]} 6. cxd5 {[%clk 0:03:00.2]} 6... Nxg5 {[%clk
0:02:56]} 7. Nxg5 {[%clk 0:03:01.1]} 7... e6 {[%clk 0:02:56.4]} 8. Nf3 {[%clk
0:03:00.9]} 8... exd5 {[%clk 0:02:55.7]} 9. b4 {[%clk 0:03:01.5]} 9... O-O
{[%clk 0:02:51.6]} 10. Qb3 {[%clk 0:02:57.4]} 10... c6 {[%clk 0:02:48.3]} 11.
Rc1 {[%clk 0:02:54.1]} 11... a6 {[%clk 0:02:43.9]} 12. e3 {[%clk 0:02:48.1]}
12... Qd6 {[%clk 0:02:42.5]} 13. Na4 {[%clk 0:02:45.4]} 13... Bg4 {[%clk
0:02:36.7]} 14. Be2 {[%clk 0:02:32]} 14... Nd7 {[%clk 0:02:35.4]} 15. h3 {[%clk
0:02:19.5]} 15... Bxf3 {[%clk 0:02:27.5]} 16. Bxf3 {[%clk 0:02:18.5]} 16... b5
{[%clk 0:02:27.4]} 17. Nc5 {[%clk 0:02:07.4]} 17... Nb6 {[%clk 0:02:27.3]} 18.
O-O {[%clk 0:01:59.8]} 18... Nc4 {[%clk 0:02:21.4]} 19. Rfd1 {[%clk 0:01:53.7]}
19... a5 {[%clk 0:02:17.8]} 20. bxa5 {[%clk 0:01:21.2]} 20... Nxa5 {[%clk
0:02:08.2]} 21. Qc2 {[%clk 0:01:16.9]} 21... Nc4 {[%clk 0:02:06.9]} 22. a4
{[%clk 0:01:16.7]} 22... bxa4 {[%clk 0:01:57.3]} 23. Nxa4 {[%clk 0:01:16.3]}
23... Rfb8 {[%clk 0:01:57]} 24. Be2 {[%clk 0:01:06.9]} 24... Na3 {[%clk
0:01:53.7]} 25. Qc5 {[%clk 0:01:05.9]} 25... Qxc5 {[%clk 0:01:45]} 26. Nxc5
{[%clk 0:01:05.5]} 26... Rb2 {[%clk 0:01:44.8]} 27. Bd3 {[%clk 0:00:45.3]} 27...
Bf8 {[%clk 0:01:43.6]} 28. Nd7 {[%clk 0:00:44.6]} 28... Rc8 {[%clk 0:01:35.6]}
29. Rc3 {[%clk 0:00:42.2]} 29... Nb5 {[%clk 0:00:43.2]} 30. Bxb5 {[%clk
0:00:35.2]} 30... Rxb5 {[%clk 0:00:42.3]} 31. Rdc1 {[%clk 0:00:28.5]} 31... Rd8
{[%clk 0:00:28.9]} 32. Ne5 {[%clk 0:00:25.4]} 32... Rb2 {[%clk 0:00:23.8]} 33.
Rxc6 {[%clk 0:00:22.4]} 33... Rb7 {[%clk 0:00:16.4]} 34. g4 {[%clk 0:00:18.5]}
34... Kg7 {[%clk 0:00:11.8]} 35. Nd3 {[%clk 0:00:18.2]} 35... Bd6 {[%clk
0:00:08.2]} 36. Ra1 {[%clk 0:00:14.3]} 36... Rb3 {[%clk 0:00:06.3]} 37. Nc1
{[%clk 0:00:13.9]} 37... Rb2 {[%clk 0:00:06]} 38. Raa6 {[%clk 0:00:13.6]} 38...
Be7 {[%clk 0:00:05.1]} 39. Nd3 {[%clk 0:00:13.7]} 39... Rd2 {[%clk 0:00:05]} 40.
Nc1 {[%clk 0:00:08.9]} 40... Bh4 {[%clk 0:00:05.1]} 41. Nb3 {[%clk 0:00:02.8]}
41... Bxf2+ {[%clk 0:00:04.3]} 42. Kf1 {[%clk 0:00:03]} 42... Rb2 {[%clk
0:00:05]} 0-1

[Event "*** SCC Grand Prix: Titled Tuesday Blitz"]
[Site "Chess.com"]
[Date "2020.08.25"]
[Round "7"]
[White "vovachesss"]
[Black "Phenix2k"]
[Result "0-1"]
[WhiteElo "2578"]
[BlackElo "2154"]
[TimeControl "180+1"]
[EndTime "11:20:21 PDT"]
[Termination "Phenix2k won by checkmate"]

1. d4 {[%clk 0:03:00.9]} 1... Nf6 {[%clk 0:02:59.8]} 2. Nc3 {[%clk 0:02:51]}
2... d5 {[%clk 0:02:59.3]} 3. Bf4 {[%clk 0:02:51.6]} 3... c5 {[%clk 0:02:57.3]}
4. e3 {[%clk 0:02:51.4]} 4... cxd4 {[%clk 0:02:56.7]} 5. exd4 {[%clk 0:02:50.2]}
5... a6 {[%clk 0:02:56.4]} 6. Nf3 {[%clk 0:02:50.6]} 6... Nc6 {[%clk 0:02:56.4]}
7. Ne5 {[%clk 0:02:45.5]} 7... Bd7 {[%clk 0:02:56.4]} 8. Be2 {[%clk 0:02:42]}
8... Rc8 {[%clk 0:02:51.9]} 9. O-O {[%clk 0:02:40.2]} 9... e6 {[%clk 0:02:49.4]}
10. Re1 {[%clk 0:02:35.8]} 10... Be7 {[%clk 0:02:48.8]} 11. a3 {[%clk
0:02:33.6]} 11... O-O {[%clk 0:02:45.7]} 12. Nxc6 {[%clk 0:02:21.9]} 12... Bxc6
{[%clk 0:02:39.1]} 13. Bd3 {[%clk 0:02:16.4]} 13... b5 {[%clk 0:02:34.4]} 14.
Re3 {[%clk 0:02:12]} 14... Rb8 {[%clk 0:02:17.7]} 15. Rh3 {[%clk 0:02:12.1]}
15... Rb7 {[%clk 0:02:15.5]} 16. Bxh7+ {[%clk 0:02:11.5]} 16... Nxh7 {[%clk
0:02:10.5]} 17. Qh5 {[%clk 0:02:11.2]} 17... f6 {[%clk 0:02:03]} 18. Qxh7+
{[%clk 0:02:11.3]} 18... Kf7 {[%clk 0:02:02.7]} 19. Qh5+ {[%clk 0:02:11.6]}
19... Kg8 {[%clk 0:02:02]} 20. Qh7+ {[%clk 0:01:46]} 20... Kf7 {[%clk
0:02:01.6]} 21. Rg3 {[%clk 0:01:46.6]} 21... Rg8 {[%clk 0:02:00.5]} 22. Qg6+
{[%clk 0:01:45.6]} 22... Kf8 {[%clk 0:02:00]} 23. Bh6 {[%clk 0:01:46.5]} 23...
Bd6 {[%clk 0:01:44.9]} 24. Rf3 {[%clk 0:01:40.9]} 24... Rf7 {[%clk 0:01:20.5]}
25. Bf4 {[%clk 0:01:28.9]} 25... Rh8 {[%clk 0:01:12.1]} 26. Re1 {[%clk
0:01:23.6]} 26... Bxf4 {[%clk 0:01:10.3]} 27. Rxf4 {[%clk 0:01:24.5]} 27... Qd6
{[%clk 0:01:09.1]} 28. g3 {[%clk 0:01:22.3]} 28... Rh6 {[%clk 0:01:03.6]} 29.
Qg4 {[%clk 0:01:22.4]} 29... Ke7 {[%clk 0:01:01.9]} 30. Rf3 {[%clk 0:01:17.2]}
30... g5 {[%clk 0:00:59.9]} 31. Rfe3 {[%clk 0:01:16.3]} 31... Bd7 {[%clk
0:00:59.7]} 32. Qf3 {[%clk 0:00:22.3]} 32... Kf8 {[%clk 0:00:54.6]} 33. Na2
{[%clk 0:00:16.1]} 33... Rfh7 {[%clk 0:00:45.2]} 34. Nb4 {[%clk 0:00:13.5]}
34... Kg7 {[%clk 0:00:37.5]} 35. Qg2 {[%clk 0:00:10.3]} 35... Rxh2 {[%clk
0:00:36.5]} 36. Qxh2 {[%clk 0:00:10.2]} 36... Rxh2 {[%clk 0:00:36.1]} 37. Kxh2
{[%clk 0:00:11.1]} 37... a5 {[%clk 0:00:33.6]} 38. Nd3 {[%clk 0:00:11.2]} 38...
b4 {[%clk 0:00:27.9]} 39. axb4 {[%clk 0:00:11.2]} 39... axb4 {[%clk 0:00:28.8]}
40. Nc5 {[%clk 0:00:12.1]} 40... Bc8 {[%clk 0:00:25.1]} 41. Nxe6+ {[%clk
0:00:11.6]} 41... Kg6 {[%clk 0:00:25.5]} 42. Nc5 {[%clk 0:00:09.6]} 42... Qf8
{[%clk 0:00:22.3]} 43. Re8 {[%clk 0:00:09.1]} 43... Qh6+ {[%clk 0:00:21.9]} 44.
Kg1 {[%clk 0:00:09.6]} 44... Qh3 {[%clk 0:00:20.5]} 45. R1e7 {[%clk 0:00:03.6]}
45... Bg4 {[%clk 0:00:15.1]} 46. Rg8+ {[%clk 0:00:01.5]} 46... Kf5 {[%clk
0:00:15.3]} 47. Nd3 {[%clk 0:00:01]} 47... Bf3 {[%clk 0:00:14.4]} 48. Ne1 {[%clk
0:00:01.5]} 48... Qh1# {[%clk 0:00:12.5]} 0-1

[Event "*** SCC Grand Prix: Titled Tuesday Blitz"]
[Site "Chess.com"]
[Date "2020.08.25"]
[Round "7"]
[White "mbojan"]
[Black "szachuspl"]
[Result "1-0"]
[WhiteElo "2779"]
[BlackElo "2508"]
[TimeControl "180+1"]
[EndTime "11:20:22 PDT"]
[Termination "mbojan won by resignation"]

1. e4 {[%clk 0:03:00.9]} 1... g6 {[%clk 0:02:57.5]} 2. d4 {[%clk 0:02:58.8]}
2... Bg7 {[%clk 0:02:57.8]} 3. Nc3 {[%clk 0:02:59.5]} 3... c5 {[%clk 0:02:57.5]}
4. d5 {[%clk 0:02:55.9]} 4... d6 {[%clk 0:02:55.8]} 5. Nf3 {[%clk 0:02:53.5]}
5... a6 {[%clk 0:02:54.9]} 6. Be2 {[%clk 0:02:48.2]} 6... b5 {[%clk 0:02:54.6]}
7. a4 {[%clk 0:02:47.2]} 7... b4 {[%clk 0:02:53]} 8. Nb1 {[%clk 0:02:47.4]} 8...
Nf6 {[%clk 0:02:53.1]} 9. Nbd2 {[%clk 0:02:47]} 9... O-O {[%clk 0:02:52.5]} 10.
O-O {[%clk 0:02:47]} 10... e6 {[%clk 0:02:52.7]} 11. dxe6 {[%clk 0:02:46.5]}
11... fxe6 {[%clk 0:02:43.4]} 12. Rb1 {[%clk 0:02:40.9]} 12... Nc6 {[%clk
0:02:41.5]} 13. b3 {[%clk 0:02:40.8]} 13... d5 {[%clk 0:02:32]} 14. Bb2 {[%clk
0:02:40.1]} 14... d4 {[%clk 0:02:17.1]} 15. Bc1 {[%clk 0:02:35.3]} 15... Qe7
{[%clk 0:02:13.9]} 16. Bd3 {[%clk 0:02:32.8]} 16... Bb7 {[%clk 0:02:10.7]} 17.
Nc4 {[%clk 0:02:26.2]} 17... e5 {[%clk 0:02:10.8]} 18. Bg5 {[%clk 0:02:21]}
18... h6 {[%clk 0:02:10]} 19. Bxf6 {[%clk 0:02:20.7]} 19... Rxf6 {[%clk
0:02:08.8]} 20. Nb6 {[%clk 0:02:20.3]} 20... Rd8 {[%clk 0:01:34.7]} 21. Nd5
{[%clk 0:02:05.3]} 21... Qd6 {[%clk 0:01:27.2]} 22. Nxf6+ {[%clk 0:02:04.1]}
22... Qxf6 {[%clk 0:01:27.1]} 23. Qe2 {[%clk 0:01:56]} 23... h5 {[%clk
0:01:25.9]} 24. Bxa6 {[%clk 0:01:51.9]} 24... Ba8 {[%clk 0:01:17.1]} 25. Bc4+
{[%clk 0:01:51.5]} 25... Kh7 {[%clk 0:01:16.1]} 26. Bd5 {[%clk 0:01:50.9]} 26...
Bh6 {[%clk 0:01:15.5]} 27. Nd2 {[%clk 0:01:48.7]} 27... h4 {[%clk 0:01:05.6]}
28. h3 {[%clk 0:01:43.4]} 28... Rf8 {[%clk 0:01:03.1]} 29. a5 {[%clk 0:01:38.8]}
29... Bb7 {[%clk 0:00:48]} 30. a6 {[%clk 0:01:35.2]} 30... Bc8 {[%clk
0:00:47.9]} 31. Nc4 {[%clk 0:01:22.1]} 31... Bxa6 {[%clk 0:00:42.1]} 32. Ra1
{[%clk 0:01:20.6]} 32... Bc8 {[%clk 0:00:35.8]} 33. Bxc6 {[%clk 0:01:17.9]}
33... Qxc6 {[%clk 0:00:34.8]} 34. Nxe5 {[%clk 0:01:18.2]} 34... Qe6 {[%clk
0:00:29.7]} 35. Ra7+ {[%clk 0:01:17.8]} 35... Kh8 {[%clk 0:00:25.1]} 36. Ng4
{[%clk 0:01:18.2]} 36... Bf4 {[%clk 0:00:24.4]} 37. Rfa1 {[%clk 0:01:15.7]}
37... Re8 {[%clk 0:00:21.5]} 38. Ra8 {[%clk 0:01:04.7]} 38... Qc6 {[%clk
0:00:21.4]} 39. Qf3 {[%clk 0:00:47.7]} 39... g5 {[%clk 0:00:17.9]} 40. e5 {[%clk
0:00:45.4]} 40... Qxf3 {[%clk 0:00:15.6]} 41. gxf3 {[%clk 0:00:46.3]} 41... Kg7
{[%clk 0:00:16.1]} 42. R1a7+ {[%clk 0:00:45]} 42... Kf8 {[%clk 0:00:15.6]} 43.
Kg2 {[%clk 0:00:43.9]} 43... Bf5 {[%clk 0:00:15.2]} 44. Rxe8+ {[%clk 0:00:40.5]}
44... Kxe8 {[%clk 0:00:16.1]} 45. Nf6+ {[%clk 0:00:40.3]} 45... Kd8 {[%clk
0:00:15.1]} 46. Ne4 {[%clk 0:00:36.3]} 46... Bxe5 {[%clk 0:00:14.4]} 47. Ra5
{[%clk 0:00:33]} 47... Bxe4 {[%clk 0:00:13.6]} 48. fxe4 {[%clk 0:00:32.8]} 48...
Bd6 {[%clk 0:00:14]} 49. Ra7 {[%clk 0:00:31.8]} 49... Ke8 {[%clk 0:00:12]} 50.
f3 {[%clk 0:00:30.9]} 50... Be7 {[%clk 0:00:10.2]} 51. Kf1 {[%clk 0:00:30.7]}
51... Kf7 {[%clk 0:00:10.7]} 52. Ra6 {[%clk 0:00:30.2]} 52... Bf6 {[%clk
0:00:07.9]} 53. Ke2 {[%clk 0:00:30.6]} 53... Be7 {[%clk 0:00:06.2]} 54. Kd3
{[%clk 0:00:30.6]} 54... Ke8 {[%clk 0:00:05.9]} 55. Kc4 {[%clk 0:00:30.5]} 55...
Kd7 {[%clk 0:00:06.7]} 56. Kd5 {[%clk 0:00:30.2]} 1-0

[Event "*** SCC Grand Prix: Titled Tuesday Blitz"]
[Site "Chess.com"]
[Date "2020.08.25"]
[Round "7"]
[White "FMalexhdez"]
[Black "AntonovaNadezhda"]
[Result "0-1"]
[WhiteElo "2161"]
[BlackElo "2036"]
[TimeControl "180+1"]
[EndTime "11:20:23 PDT"]
[Termination "AntonovaNadezhda won on time"]

1. e4 {[%clk 0:03:00.9]} 1... d6 {[%clk 0:03:00.1]} 2. d4 {[%clk 0:03:00]} 2...
Nf6 {[%clk 0:03:00.5]} 3. Nc3 {[%clk 0:02:58.6]} 3... e5 {[%clk 0:03:01]} 4. Nf3
{[%clk 0:02:57.5]} 4... Nbd7 {[%clk 0:02:59.9]} 5. Be2 {[%clk 0:02:54.4]} 5...
Be7 {[%clk 0:02:59.8]} 6. O-O {[%clk 0:02:53.5]} 6... O-O {[%clk 0:02:59.9]} 7.
h3 {[%clk 0:02:53]} 7... c6 {[%clk 0:02:59.9]} 8. a4 {[%clk 0:02:51.8]} 8... b6
{[%clk 0:02:59]} 9. Re1 {[%clk 0:02:51.5]} 9... Bb7 {[%clk 0:02:59.1]} 10. Bf1
{[%clk 0:02:51.2]} 10... a6 {[%clk 0:02:58.4]} 11. g3 {[%clk 0:02:42.8]} 11...
b5 {[%clk 0:02:54.7]} 12. axb5 {[%clk 0:02:38.1]} 12... axb5 {[%clk 0:02:54.2]}
13. Rxa8 {[%clk 0:02:37.5]} 13... Qxa8 {[%clk 0:02:54.2]} 14. dxe5 {[%clk
0:02:36.6]} 14... dxe5 {[%clk 0:02:51.9]} 15. Qe2 {[%clk 0:02:06.7]} 15... b4
{[%clk 0:02:47.5]} 16. Nd1 {[%clk 0:02:05.5]} 16... c5 {[%clk 0:02:37.2]} 17.
Nd2 {[%clk 0:02:04.7]} 17... Re8 {[%clk 0:02:19.4]} 18. b3 {[%clk 0:02:01.2]}
18... Nf8 {[%clk 0:02:17]} 19. Bb2 {[%clk 0:01:54.2]} 19... Bd6 {[%clk
0:02:16.9]} 20. Nc4 {[%clk 0:01:27.3]} 20... Bc7 {[%clk 0:02:14.8]} 21. Bg2
{[%clk 0:01:15.1]} 21... Ba6 {[%clk 0:01:39.3]} 22. Nde3 {[%clk 0:01:09.3]}
22... Ne6 {[%clk 0:01:36.8]} 23. Nd5 {[%clk 0:01:00.8]} 23... Nd7 {[%clk
0:00:45.7]} 24. Qg4 {[%clk 0:00:52.2]} 24... Bxc4 {[%clk 0:00:34.9]} 25. Nxc7
{[%clk 0:00:43.9]} 25... Nxc7 {[%clk 0:00:26.5]} 26. Qxd7 {[%clk 0:00:43.3]}
26... Qa2 {[%clk 0:00:13.5]} 27. bxc4 {[%clk 0:00:36.2]} 27... Qxb2 {[%clk
0:00:11.3]} 28. Qxc7 {[%clk 0:00:35.5]} 28... Qxc2 {[%clk 0:00:11.2]} 29. Qd7
{[%clk 0:00:32.1]} 29... Rf8 {[%clk 0:00:10.3]} 30. Bf1 {[%clk 0:00:28.2]} 30...
Qc3 {[%clk 0:00:09.8]} 31. Rd1 {[%clk 0:00:26.3]} 31... h6 {[%clk 0:00:08]} 32.
Qd3 {[%clk 0:00:23.3]} 32... Qb2 {[%clk 0:00:06.5]} 33. Rb1 {[%clk 0:00:22.6]}
33... Qd4 {[%clk 0:00:04.5]} 34. Qxd4 {[%clk 0:00:16.1]} 34... exd4 {[%clk
0:00:03.9]} 35. f4 {[%clk 0:00:15]} 35... Ra8 {[%clk 0:00:03.6]} 36. Kf2 {[%clk
0:00:08]} 36... Ra3 {[%clk 0:00:04]} 37. e5 {[%clk 0:00:05.7]} 37... f6 {[%clk
0:00:04.2]} 38. exf6 {[%clk 0:00:03.8]} 38... gxf6 {[%clk 0:00:03.7]} 39. Bg2
{[%clk 0:00:04.1]} 39... Kf7 {[%clk 0:00:04.1]} 40. Bd5+ {[%clk 0:00:04.1]}
40... Ke7 {[%clk 0:00:04.2]} 41. Re1+ {[%clk 0:00:03.4]} 41... Kd6 {[%clk
0:00:04.8]} 42. f5 {[%clk 0:00:03.4]} 42... Kc7 {[%clk 0:00:04.5]} 43. Re7+
{[%clk 0:00:03.1]} 43... Kd8 {[%clk 0:00:02.6]} 44. Re6 {[%clk 0:00:01.4]} 44...
Ra2+ {[%clk 0:00:03.1]} 0-1

[Event "*** SCC Grand Prix: Titled Tuesday Blitz"]
[Site "Chess.com"]
[Date "2020.08.25"]
[Round "7"]
[White "pastouche06"]
[Black "JoliyRoger"]
[Result "1-0"]
[WhiteElo "2511"]
[BlackElo "2367"]
[TimeControl "180+1"]
[EndTime "11:20:24 PDT"]
[Termination "pastouche06 won on time"]

1. d4 {[%clk 0:03:00.9]} 1... Nf6 {[%clk 0:02:57.9]} 2. c4 {[%clk 0:03:00.9]}
2... e6 {[%clk 0:02:58.2]} 3. Nc3 {[%clk 0:03:00.7]} 3... Bb4 {[%clk 0:02:58.7]}
4. e3 {[%clk 0:02:58.9]} 4... c5 {[%clk 0:02:58.9]} 5. Ne2 {[%clk 0:02:58.3]}
5... cxd4 {[%clk 0:02:58.2]} 6. exd4 {[%clk 0:02:59.2]} 6... d5 {[%clk
0:02:58.5]} 7. a3 {[%clk 0:02:59.1]} 7... Bxc3+ {[%clk 0:02:58.2]} 8. Nxc3
{[%clk 0:03:00]} 8... Nc6 {[%clk 0:02:58.5]} 9. c5 {[%clk 0:02:46.4]} 9... Ne4
{[%clk 0:02:58.4]} 10. Nxe4 {[%clk 0:02:14.7]} 10... dxe4 {[%clk 0:02:56.4]} 11.
Be3 {[%clk 0:02:15.3]} 11... O-O {[%clk 0:02:56.6]} 12. g3 {[%clk 0:02:07.9]}
12... Ne7 {[%clk 0:02:40.5]} 13. Bg2 {[%clk 0:02:01.5]} 13... f5 {[%clk
0:02:40.6]} 14. Bf4 {[%clk 0:01:57.4]} 14... Nd5 {[%clk 0:02:38.6]} 15. Be5
{[%clk 0:01:54.5]} 15... Bd7 {[%clk 0:02:33.5]} 16. O-O {[%clk 0:01:52.1]} 16...
Bc6 {[%clk 0:02:33.6]} 17. Qd2 {[%clk 0:01:50.2]} 17... Qd7 {[%clk 0:02:33.3]}
18. Rfe1 {[%clk 0:01:30.9]} 18... Rad8 {[%clk 0:02:31.1]} 19. f3 {[%clk
0:01:22.5]} 19... exf3 {[%clk 0:02:14.9]} 20. Bxf3 {[%clk 0:01:23.4]} 20... Ne7
{[%clk 0:02:15.2]} 21. Bxc6 {[%clk 0:01:18.2]} 21... Qxc6 {[%clk 0:02:04.1]} 22.
Bd6 {[%clk 0:01:12.6]} 22... Rxd6 {[%clk 0:01:40.4]} 23. cxd6 {[%clk 0:01:13.5]}
23... Qxd6 {[%clk 0:01:41.2]} 24. Qe3 {[%clk 0:01:13.2]} 24... Rf6 {[%clk
0:01:40.6]} 25. Qe5 {[%clk 0:01:07]} 25... Qd7 {[%clk 0:01:40.9]} 26. Rac1
{[%clk 0:01:00.3]} 26... Nc6 {[%clk 0:01:37.1]} 27. Qe3 {[%clk 0:00:53]} 27...
Nxd4 {[%clk 0:01:24]} 28. Kf2 {[%clk 0:00:25.7]} 28... Qd5 {[%clk 0:01:15.2]}
29. Rcd1 {[%clk 0:00:20.6]} 29... f4 {[%clk 0:00:18.8]} 30. Qxd4 {[%clk
0:00:08.9]} 30... fxg3+ {[%clk 0:00:18.6]} 31. Ke2 {[%clk 0:00:05.5]} 31... Rf2+
{[%clk 0:00:18.3]} 32. Kd3 {[%clk 0:00:05.3]} 32... Qb3+ {[%clk 0:00:15.1]} 33.
Ke4 {[%clk 0:00:04.6]} 33... Qf3+ {[%clk 0:00:13.5]} 34. Ke5 {[%clk 0:00:04.6]}
34... Qf6+ {[%clk 0:00:06.5]} 35. Kd6 {[%clk 0:00:04.5]} 35... Qd8+ {[%clk
0:00:07.1]} 36. Kc5 {[%clk 0:00:03.8]} 36... Qb6+ {[%clk 0:00:07]} 37. Kc4
{[%clk 0:00:03.8]} 37... Rc2+ {[%clk 0:00:06.9]} 38. Kd3 {[%clk 0:00:04.1]}
38... Qb3+ {[%clk 0:00:07.2]} 39. Ke4 {[%clk 0:00:04.3]} 39... gxh2 {[%clk
0:00:04.4]} 40. Qd8+ {[%clk 0:00:03.5]} 40... Kf7 {[%clk 0:00:04.9]} 41. Rf1+
{[%clk 0:00:04.2]} 41... Kg6 {[%clk 0:00:05.4]} 42. Rg1+ {[%clk 0:00:03.7]}
42... hxg1=Q {[%clk 0:00:04.9]} 43. Rxg1+ {[%clk 0:00:04.6]} 43... Kf7 {[%clk
0:00:03.4]} 44. Qd7+ {[%clk 0:00:04.5]} 44... Kf6 {[%clk 0:00:01.3]} 45. Rf1+
{[%clk 0:00:04.7]} 1-0